Cogmind - Beta 15 @@@ ROGUE MODE // 2025.07.26 @ 00:21:30 Player: ilja Result: Destroyed by B2-LWF(R) with Subdweller Laser Performance ------------- Evolutions (0) 0 Regions Visited (2) 400 Robots Destroyed (14) 70 Value Destroyed (256) 256 Prototype IDs (1) 20 Alien Tech Used (0) 0 Bonus (0) 0 TOTAL SCORE: 746 Bonus ------- None Cogmind --------- Core Integrity 0/250 Matter 281/300 Energy 148/150 System Corruption 0% Temperature Cool (6) Movement Flying (280) Ox3 Location -10/Subcaves Parts ------- > --- POWER (1) -------- Light Angular Momentum Engine > --- PROPULSION (2) --- Flight Unit > --- UTILITY (2) ------ Subdweller Optics Targeting Computer > --- WEAPON (2) ------- Light Assault Rifle Light Assault Rifle > --- INVENTORY (5) ---- Ion Engine Light Angular Momentum Engine Small Battery (100) Subdweller Shrapnel Launcher Peak State ------------ > --- POWER ------------ Ion Engine > --- PROPULSION ------- Improved Flight Unit Improved Flight Unit > --- UTILITY ---------- Visual Processing Unit Seismic Detector > --- WEAPON ----------- Particle Gun Particle Gun > --- INVENTORY -------- Ion Engine Light Ion Engine Small Storage Unit Light Assault Rifle [Rating: 14] Favorites ----------- Power Ion Engine Engine Ion Engine Propulsion Flight Unit Treads Light Treads Flight Unit Flight Unit Utility Small Storage Unit Device Subdweller Optics Storage Small Storage Unit Processor Targeting Computer Protection Scrap Shield Weapon Light Assault Rifle Energy Gun Particle Gun Ballistic Gun Light Assault Rifle Build | -11 -10 -10 ------- Run | Yrd Mat Sub Slots Evolved . | . . . Power . | . . . Propulsion . | . . . Utility . | . . . Weapon . | . . . Parts Attached 23 | 7 10 6 Power 4 | 1 . 3 Engine 4 | 1 . 3 Core . | . . . Reactor . | . . . Propulsion 7 | 2 5 . Treads 2 | 2 . . Leg . | . . . Wheel . | . . . Hover . | . . . Flight 5 | . 5 . Utility 7 | 2 2 3 Device 2 | 1 . 1 Storage 2 | 1 1 . Processor 2 | . 1 1 Hackware . | . . . Protection 1 | . . 1 Artifact . | . . . Weapon 5 | 2 3 . Energy Gun 2 | . 2 . Energy Cannon . | . . . Ballistic Gun 3 | 2 1 . Ballistic Cannon . | . . . Launcher . | . . . Special Weapon . | . . . Impact Weapon . | . . . Slashing Weapon . | . . . Piercing Weapon . | . . . Special Melee Weapon . | . . . Unidentified Prototypes 1 | . 1 . Parts Lost 5 | . 4 1 Power 1 | . 1 . Propulsion 2 | . 1 1 Utility 1 | . 1 . Weapon 1 | . 1 . Highest Loss Streak 2 | . 2 1 To Critical Strikes . | . . . Average Backups 3 | 1 4 4 Power 1 | . 2 1 Propulsion . | . . . Utility 1 | . . 2 Weapon 1 | . 1 . Tool/Special . | . . . Unused Backups 5 | . . 5 Power 1 | . . 1 Propulsion . | . . . Utility 2 | . . 2 Weapon 2 | . . 2 Tool/Special . | . . . Average Slot Usage (%) 89 | . 89 90 Engine 11 | . 7 14 Treads 1 | . 3 . Flight 25 | . 22 27 Device 5 | . 7 4 Storage 7 | . 18 . Processor 3 | . 1 4 Protection 5 | . . 8 Energy Gun 4 | . 13 . Ballistic Gun 23 | . 14 28 Peak Build Rating 14 | 7 14 12 Average Rating 8 | 5 9 9 On Entrance 4 | . 7 6 Naked Turns . | . . . Heaviest Build 32 | 13 31 32 Greatest Support 40 | 40 40 8 Greatest Overweight (x) 10 | . 10 3 Average Overweight (x) 1 | . 1 1 Largest Inventory Capacity 15 | 8 15 15 Average Capacity 7 | 6 10 5 Most Carried 7 | 3 6 7 Average Carried 3 | 1 4 4 Final Capacity 15 | 8 15 5 Final Carried 6 | 3 6 4 Class Distribution -------------------- 82% | Mutant 17% | Scavenger-Mutant Dominant Class ---------------- Mutant | -10/Materials Mutant | -10/Subcaves Resources | -11 -10 -10 ----------- Run | Yrd Mat Sub Matter Collected 504 | 296 117 91 Remotely . | . . . Salvage Created 439 | 141 179 119 Parts 25 | 8 6 11 Haulers Intercepted . | . . . Recyclers Shooed . | . . . Parts Field Recycled . | . . . Retrieved Matter . | . . . Parts Self-Destructed 8 | . . 8 Prevented . | . . . Kills | -11 -10 -10 ------- Run | Yrd Mat Sub Combat Hostiles Destroyed 7 | . 4 3 Guns 7 | . 4 3 Classes Destroyed 6 | 3 2 1 Worker 2 | 2 . . Tunneler 3 | 3 . . Recycler 2 | 1 1 . Swarmer 2 | . 2 . Grunt 2 | . 2 . Subdweller 3 | . . 3 Best Kill Streak 3 | 2 3 2 Combat Bots Only 2 | . 2 2 Max Kills in Single Turn 1 | 1 1 1 Gunslinging . | . . . Exploded . | . . . Melee . | . . . Uniques/NPCs Destroyed . | . . . Combat | -11 -10 -10 -------- Run | Yrd Mat Sub Hostile Shots Fired 70 | . 48 22 Missed 15 | . 7 8 Hits 55 | . 41 14 Projectile 55 | . 41 14 Critical Strikes 1 | . 1 . Damage Taken 845 | . 553 292 Core 258 | . 199 59 Absorbed by Shields . | . . . Core Remaining (%) 100 | 100 . . Volleys Fired 42 | 13 18 11 Largest 2 | 2 2 2 Hottest 130 | 40 130 40 Shots Fired 84 | 26 36 22 Gun 84 | 26 36 22 Cannon . | . . . Launcher . | . . . Special . | . . . Kinetic 60 | 26 12 22 Thermal 24 | . 24 . Explosive . | . . . Electromagnetic . | . . . Robot Hit Streak 8 | 8 7 8 Robot Miss Streak 5 | 4 5 2 Penetration Max . | . . . Secondary Targets 2 | . 1 1 Max Gunslinging Chain 1 | . 1 1 Shots Hit Robots 51 | 15 20 16 Core Hits 21 | 9 7 5 Critical Kills . | . . . Critical Parts Destroyed . | . . . Critical Strikes . | . . . Melee Attacks . | . . . Impact . | . . . Slashing . | . . . Piercing . | . . . Sneak Attacks . | . . . Combat Hostiles . | . . . Follow-up Attacks . | . . . Damage Inflicted 512 | 130 259 123 Guns 491 | 124 244 123 Cannons . | . . . Explosions . | . . . Melee . | . . . Ramming 21 | 6 15 . Kinetic 310 | 124 63 123 Thermal 181 | . 181 . Explosive . | . . . Electromagnetic . | . . . Impact . | . . . Slashing . | . . . Piercing . | . . . Highest Corruption . | . . . Average Corruption . | . . . Corruption Purged . | . . . Corruption Blocked . | . . . Overload Shots . | . . . Overflow Damage . | . . . Projectiles . | . . . Explosions . | . . . Melee . | . . . Knockbacks . | . . . Impact . | . . . Kinetic . | . . . Secondary . | . . . Self-Inflicted Damage 7 | . 7 . Shots . | . . . Rammed 4 | 1 3 . Targets Rammed 5 | 2 3 . Kicked . | . . . Crushed 1 | 1 . . Highest Temperature 646 | . 646 . Average Temperature 258 | . 258 . Received Heat Transfer 306 | . 219 87 Effects 16 | . 16 . Shutdowns 2 | . 2 . Energy Bleed 5 | . 5 . Interference 2 | . 2 . Short Circuit 2 | . 2 . Damage (minor) 1 | . 1 . Damage (major) 2 | . 2 . Damage (core) 2 | . 2 . Siege Activations . | . . . Martial Activations . | . . . Shielding Activations . | . . . Robots Disrupted . | . . . Combat Hostiles . | . . . Robots Corrupted . | . . . Combat Hostiles . | . . . Parts Fried . | . . . Impact Corruptions . | . . . Robots Melted . | . . . Combat Hostiles . | . . . Parts Melted . | . . . Heat Transferred 444 | . 444 . Parts Sabotaged . | . . . Parts Stolen . | . . . Parts Stripped . | . . . Power Chain Reactions . | . . . Alert | -11 -10 -10 ------- Run | Yrd Mat Sub Maximum Alert Level . | . . . Low Security (%) 100 | 100 100 . Level 1 . | . . . Level 2 . | . . . Level 3 . | . . . Level 4 . | . . . Level 5 . | . . . High Security . | . . . Max Security . | . . . Peak Influence 30 | 5 30 . Initial . | . . . Average 2 | . 4 . Influence Increases 140 | 30 110 . Destroy 0b10 Robot/C 80 | . 80 . Destroy 0b10 Robot/NC 35 | 30 5 . Destroy Leader 10 | . 10 . Lose Combat Pursuer 15 | . 15 . Influence Decreases 140 | 30 110 . Time Decay 105 | 30 75 . Lost Part 35 | . 35 . Squads Dispatched . | . . . Investigation . | . . . Extermination . | . . . Reinforcement . | . . . Assault . | . . . Garrison . | . . . Intercept . | . . . Searches Triggered . | . . . Construction Impeded . | . . . Haulers Reinforced . | . . . Active Scanning Responses . | . . . Cargo Convoy Interrupts . | . . . Stealth | -11 -10 -10 --------- Run | Yrd Mat Sub Distress Signals . | . . . Communications Jammed . | . . . Distress Signals . | . . . Times Spotted 20 | . 8 12 Peak Tracking Total 6 | . 3 6 Tactical Retreats 1 | . 1 . Traps | -11 -10 -10 ------- Run | Yrd Mat Sub Traps Triggered 1 | . 1 . Indirectly . | . . . Trap Hack Attempts . | . . . Triggered . | . . . Disarmed . | . . . Reprogrammed . | . . . Reused . | . . . Traps Extracted . | . . . Installed . | . . . Triggered . | . . . Machines | -11 -10 -10 ---------- Run | Yrd Mat Sub Machines Disabled . | . . . Max in Single Turn . | . . . Machines Repaired . | . . . Machines Dismantled . | . . . Machines Sabotaged . | . . . Overloaded Fab Kills . | . . . Hacking | -11 -10 -10 --------- Run | Yrd Mat Sub Machines Accessed 1 | . 1 . Terminals 1 | . 1 . Fabricators . | . . . Repair Stations . | . . . Recycling Units . | . . . Scanalyzers . | . . . Garrison Access . | . . . Total Hacks 1 | . 1 . Successful 1 | . 1 . Failed . | . . . Catastrophic . | . . . Database Lockouts . | . . . Manual . | . . . Terminals 1 | . 1 . Fabricators . | . . . Repair Stations . | . . . Recycling Units . | . . . Scanalyzers . | . . . Garrison Access . | . . . Terminal Hacks 1 | . 1 . Record 1 | . 1 . Fabricator Hacks . | . . . Repair Station Hacks . | . . . Recycling Unit Hacks . | . . . Scanalyzer . | . . . Garrison Access Hacks . | . . . Unauthorized Hacks . | . . . Terminals . | . . . Fabricators . | . . . Repair Stations . | . . . Recycling Units . | . . . Scanalyzers . | . . . Garrison Access . | . . . Data Cores Recovered . | . . . Used . | . . . Hacking Detections 1 | . 1 . Full Trace Events . | . . . Feedback Events . | . . . Feedback Blocked . | . . . Robot Schematics Acquired . | . . . Robots Built . | . . . Authchips . | . . . Time . | . . . Total Robot Build Rating . | . . . Part Schematics Acquired . | . . . Parts Built . | . . . Authchips . | . . . Time . | . . . Total Part Build Rating . | . . . Parts Repaired . | . . . Time . | . . . Parts Recycled . | . . . Recycled Matter . | . . . Retrieved Matter . | . . . Retrieved Components . | . . . Parts Scanalyzed . | . . . Part Schematics Acquired . | . . . Parts Damaged . | . . . Bothacking | -11 -10 -10 ------------ Run | Yrd Mat Sub Used RIF Installer . | . . . Robots Hacked . | . . . Non-combat . | . . . Combat . | . . . Robot Hacks Applied . | . . . Relay Couplers Released . | . . . Fabnet Peak Effective % . | . . . Robots Rewired . | . . . Allies Hacked . | . . . Hacks Repelled . | . . . Allies | -11 -10 -10 -------- Run | Yrd Mat Sub Total Allies . | . . . Largest Group . | . . . Highest-Rated Group . | . . . Highest-Rated Ally . | . . . Total Orders . | . . . Ally Attacks . | . . . Total Damage . | . . . Kills . | . . . Allies Corrupted . | . . . Allies Melted . | . . . Intel | -11 -10 -10 ------- Run | Yrd Mat Sub Active Infowar (turns) 522 | 45 301 176 Optics 219 | . 43 176 Seismic 346 | 45 301 . Robot Analysis Total . | . . . Derelict Logs Recovered . | . . . Drone Launches . | . . . Drone Recoveries . | . . . Exploration | -11 -10 -10 ------------- Run | Yrd Mat Sub Turns Passed 2036 | 397 598 1041 Spaces Moved 1069 | 223 318 528 Core 46 | 8 38 . Treads 249 | 215 34 . Legs . | . . . Wheels . | . . . Hover . | . . . Flight 774 | . 246 528 Fastest Speed 37 | 50 37 37 Average Speed 173 | 156 161 189 Slowest Speed 550 | 160 550 280 Overloaded Moves . | . . . Propulsion Burnouts . | . . . Robots Hopped . | . . . Potential Cave-ins . | . . . Cave-ins Triggered . | . . . Exploration Rate (%) 20 | 12 34 15 Regions Visited 2 Branch Regions 1 Pre-discovered Areas . | . . . Known Exits Taken . | . . . Unknown Exits Taken 2 | 1 1 . Scrap Searched . | . . . Spaces Dug . | . . . Terrain Destroyed . | . . . Melee . | . . . Projectile . | . . . AOE . | . . . Terrain Rammed . | . . . Walls Destroyed . | . . . Machines Disabled . | . . . Actions | -11 -10 -10 --------- Run | Yrd Mat Sub Total 1172 | 247 368 557 Wait . | . . . Move 1067 | 222 317 528 Hop . | . . . Pick Up 12 | 3 4 5 Fast Attach 18 | 7 10 1 Attach 5 | . 2 3 Detach 1 | . 1 . Swap 7 | . 5 2 Drop 15 | . 8 7 Fire 42 | 13 18 11 Melee . | . . . Ram 3 | . 3 . Kick . | . . . Crush 2 | 2 . . Escape Stasis . | . . . Rewire . | . . . Trap . | . . . Miscellaneous . | . . . Route ------- -11/Scrapyard -10/Materials (discovered 2 exits: [*Mat] / [*Sub]) -10/Subcaves History --------- Turn | Location | Event 5 | -11/Scrapyard | Discovered new exit (range 16) 398 | -11/Scrapyard | Entered Materials 399 | -10/Materials | Build established: Mutant 705 | -10/Materials | Core integrity fell below 50% 890 | -10/Materials | Discovered new exit (range 15) 957 | -10/Materials | Discovered new exit (range 10) 996 | -10/Materials | Entered Subcaves 997 | -10/Subcaves | Approached by a straggling Scientist 1155 | -10/Subcaves | Ambushed by swarm of Subdwellers 1690 | -10/Subcaves | Lost 3 allies 1717 | -10/Subcaves | A swath of the cavern ceiling suddenly collapsed 1964 | -10/Subcaves | Build established: Scavenger-Mutant 2009 | -10/Subcaves | Core integrity fell below 20% 2037 | -10/Subcaves | Destroyed by B2-LWF(R) with Subdweller Laser Last Messages --------------- CD-8Q7(c): "We're getting close, I can feel it." 3B-ALJ(h) destroyed. 77-9NR(g) destroyed. IZ-L4L(R) destroyed. Dropped Scrap Shield. Acquired Targeting Computer. Acquired 22 matter. 31 Matter crushed. Scrap Shield crushed. A swath of the cavern ceiling suddenly collapses. Acquired Lgt. Angular Momentum Engine. Sub. Optics shoots sparks and powers down. Dropped Targeting Computer. Want a larger map view with more modal windows? Or have a large enough display to fit a bigger map in exchange for smaller text? Consider selecting a different UI Layout in the option menu. Flight Unit destroyed. Map ----- +----------------------------------------------------+ | ??????????????????# ##%* ##?????????????????? | | ?????????????????# #?#[!&#??????????????????? | | ??????????????? ??#=!!##?????????????????? | | ??????###????? ??##=!&&##????????????????? | | ?????? ????### ## ??# #????????????????? | | ?????? #?????#??##???#% #????????????????? | | ??????? ####????????## #????????????????? | | ????????? ##??????# #????????????????? | | ?????????? ##?????# ## #????????????????? | | ??????????? ##????###?# ##????????????????? | | ???????????? #???????## #?????????????????? | | ????????????? #???????# ##????????????????? | | ??????????????# #?####??# #????????????????? | | ?????????????## #?# ##?# #????????????????? | | ????????????## ### ### %##???????????????? | | ????????????# # ### ##??????????????? | | ???????????## ## #% #??????????????? | | ???????????# !% ##### #??????????????? | | ???????????# %! ## %#??????????????? | | ???????????# ##??????????????? | | ???????????# ## #??????????????? | | ???????????# #??????????????? | | ???????????# #??????????????? | | ???????????#### # ;#??????????????? | | ??????????????# # ###??????????????? | | ?????????????## ""#" ## @ ##????????????????? | | ??##?????????# "##"##### ##?????????????????? | | ########?????## " " #??# ##??????????????????? | | #""##"######### "##" #??#R ##??????????????????? | | """"##"###### ""##??# #??????????????????? | | !"#"" " " #"##???# ##??????????????????? | | ##"#"####"#### ##????## "#??????????????????? | | """#"####"# ## ####????### ##??????????????????? | | ###"# #?###!%####??????# ""#??????????????????? | | """###??#%[### #?????#""""""#??????????????????? | | """##???###|[" ###### """""##?????????????????? | | #"#?????# ! # # """ """#?????????????????? | | ##??????# % "" """#?????????????????? | | ????????## """ ##"#""#?????????????????? | | ?????????## ## ## ####????????????????????? | | ??????????########## ##???????????????????????? | | ???????????????????# #????????????????????????? | | ???????????????????# #????????????????????????? | | ???????????????????## #????????????????????????? | | ???????????????????? #????????????????????????? | | ???????????????????? ????????????????????????? | | ????????????????????### ????????????????????????? | | ???????????????????????##???????????????????????? | | ????????????????????????????????????????????????? | | ????????????????????????????????????????????????? | +----------------------------------------------------+ Best States ------------- Heat Dissipation 25 Energy Generation 18 Energy Capacity 250 Matter Stores 300 Matter Capacity 300 Sight Range 21 Terrain Scan Density 10 Armor Coverage 800 Evasion (%) 40 Targeting Accuracy 5 Recoil Reduction 2 Item Schematics ----------------- None Robot Schematics ------------------ None Fabricated ------------ Nothing Repaired ---------- Nothing Alien Tech Used ----------------- None Achievements -------------- None Challenges ------------ None Game ------ Seed ComponentLongswordScanner Manual? 0 Play Time 00:20:17 Cumulative 2.1 hours Start 2025.07.26 @ 00:01:14 End 2025.07.26 @ 00:21:30 Sessions 1 Manual Loads 0 Difficulty Rogue Special Mode None Game No. 8 Rogue 8 Adventurer 0 Explorer 0 Win Type - Total 0 Types 0/0/0/0/0/0/0/0/0/0 Lore% 0 Gallery% 5 Achievement% 4 Wizard Run 0 Options --------- Layout 1 ASCII 0 Keyboard 0 Movement Arrows Keybinds 0 Fullscreen 1 Font 24/Smallcaps Map View 50x40 Zoom Use 0% Tactical HUD 0 Map Filters NONE Filters NONE Steam 1 RUN: 97d9f1c0-6122-430c-85cb-f853a895cb08